fUSD/lending_fUSD_20240831
["ID","MTS","AMOUNT","RATE_DAILY","PERIOD"]
[336748713,1725097120361,-500.0,0.00041643,120]
[336748714,1725097120410,-500.0,0.00041643,120]
[336748715,1725097120458,-818.6,0.00041643,120]
[336748716,1725097120503,-500.0,0.00041643,120]
[336748717,1725097120552,-545.12,0.00041643,120]
[336748718,1725097120601,-700.92,0.00041643,120]
[336748719,1725097121146,-500.0,0.00041643,120]
[336748720,1725097121215,-642.58,0.00041643,120]
[336748721,1725097121269,-970.93,0.00041643,120]
[336748722,1725097121320,-1182.65,0.00041643,120]
[336748723,1725097121368,-500.0,0.00041643,120]
[336748724,1725097121416,-500.0,0.00041643,120]
[336748725,1725097121462,-537.82,0.00041643,120]
[336748726,1725097121510,-1318.5,0.00041643,120]
[336748727,1725097121558,-500.0,0.00041643,120]
[336748728,1725097121608,-3016.08,0.00041643,120]
[336748729,1725097121657,-831.76,0.00041643,120]
[336748730,1725097121704,-1476.17,0.00041643,120]
[336748731,1725097121754,-983.21,0.00041643,120]
[336748732,1725097121801,-885.33,0.00041643,120]
[336748733,1725097121849,-2660.4,0.00041643,120]
[336748734,1725097121897,-500.0,0.00041643,120]
[336748735,1725097121944,-638.33,0.00041643,120]
[336748736,1725097121989,-755.01,0.00041643,120]
[336748737,1725097122041,-604.41,0.00041643,120]
[336748738,1725097122095,-500.0,0.00041643,120]
[336748739,1725097122148,-4191.91,0.00041643,120]
[336748740,1725097122201,-3168.28,0.00041643,120]
[336748741,1725097122252,-500.0,0.00041643,120]
[336748742,1725097122303,-599.15,0.00041643,120]
[336748743,1725097122357,-500.0,0.00041643,120]
[336748744,1725097122411,-500.0,0.00041643,120]
[336748745,1725097122463,-665.66,0.00041643,120]
[336748746,1725097122516,-1523.88,0.00041643,120]
[336748747,1725097122566,-500.0,0.00041643,120]
[336748748,1725097122615,-618.99,0.00041643,120]
[336748749,1725097122664,-500000.0,0.00042,120]
[336748750,1725097122713,-500.0,0.00042191,120]
[336748751,1725097122761,-500.0,0.00042191,120]
[336748752,1725097122809,-500.0,0.00042191,120]
[336748753,1725097122857,-500.0,0.00042191,120]
[336748754,1725097122904,-500.0,0.00042191,120]
[336748755,1725097122953,-500.0,0.00042191,120]
[336748756,1725097123001,-500.0,0.00042191,120]
[336748757,1725097123052,-500.0,0.00042191,120]
[336748758,1725097123100,-500.0,0.00042191,120]
[336748759,1725097123150,-500.0,0.00042191,120]
[336748760,1725097123200,-500.0,0.00042191,120]
[336748761,1725097123246,-500.0,0.00042191,120]
[336748762,1725097123294,-500.0,0.00042191,120]
[336748763,1725097123340,-560.46,0.00042191,120]
[336748764,1725097123384,-500.0,0.00042191,120]
[336748765,1725097123428,-500.0,0.00042191,120]
[336748766,1725097123477,-500.0,0.00042191,120]
[336748767,1725097123522,-561.62,0.00042191,120]
[336748768,1725097123570,-500.0,0.00042191,120]
[336748769,1725097123620,-500.0,0.00042191,120]
[336748770,1725097123673,-500.0,0.00042191,120]
[336748771,1725097123725,-500.0,0.00042191,120]
[336748772,1725097123778,-500.0,0.00042191,120]
[336748773,1725097123830,-500.0,0.00042191,120]
[336748774,1725097123882,-500.0,0.00042191,120]
[336748775,1725097123932,-500.0,0.00042191,120]
[336748776,1725097123979,-500.0,0.00042191,120]
[336748777,1725097124027,-500.0,0.00042191,120]
[336748778,1725097124077,-500.0,0.00042191,120]
[336748779,1725097124127,-500.0,0.00042191,120]
[336748780,1725097124178,-500.0,0.00042191,120]
[336748781,1725097124230,-500.0,0.00042191,120]
[336748782,1725097124279,-946.93,0.00042191,120]
[336748783,1725097124330,-500.0,0.00042191,120]
[336748784,1725097124384,-590.31,0.00042191,120]
[336748785,1725097124438,-725.19,0.00042191,120]
[336748786,1725097124490,-532.94,0.00042191,120]
[336748787,1725097124539,-500.0,0.00042191,120]
[336748788,1725097124591,-500.0,0.00042191,120]
[336748789,1725097124648,-500.0,0.00042191,120]
[336748790,1725097124704,-192.90909874,0.00042191,120]
[336748791,1725097124760,-500.0,0.00042191,120]
[336748792,1725097124817,-500.0,0.00042191,120]
[336748793,1725097124874,-500.0,0.00042191,120]
[336748794,1725097124931,-500.0,0.00042191,120]
[336748795,1725097124987,-500.0,0.00042191,120]
[336748796,1725097125040,-835.6,0.00042191,120]
[336748797,1725097125093,-500.0,0.00042191,120]
[336748798,1725097125146,-500.0,0.00042191,120]
[336748799,1725097125197,-500.0,0.00042191,120]
[336748800,1725097125245,-500.0,0.00042191,120]
[336748801,1725097125292,-1002.35,0.00042191,120]
[336748802,1725097125340,-500.0,0.00042191,120]
[336748803,1725097125385,-500.0,0.00042191,120]
[336748804,1725097125429,-500.0,0.00042191,120]
[336748805,1725097125479,-500.0,0.00042191,120]
[336748806,1725097125525,-500.0,0.00042191,120]
[336748807,1725097125573,-500.0,0.00042191,120]
[336748808,1725097125619,-500.0,0.00042191,120]
[336748809,1725097125666,-748.87,0.00042191,120]
[336748810,1725097125717,-500.0,0.00042191,120]
[336748811,1725097125767,-500.0,0.00042191,120]
[336748812,1725097125815,-704.37,0.00042191,120]
[336748813,1725097125860,-500.0,0.00042191,120]
[336748814,1725097125908,-500.0,0.00042191,120]
[336748815,1725097125956,-500.0,0.00042191,120]
[336748816,1725097126003,-960.35,0.00042191,120]
[336748817,1725097126051,-500.0,0.00042191,120]
[336748818,1725097126101,-743.26,0.00042191,120]
[336748819,1725097126317,-723.59,0.00042191,120]
[336748820,1725097126368,-500.0,0.00042191,120]
[336748821,1725097126418,-1975.9,0.00042191,120]
[336748822,1725097126469,-500.0,0.00042191,120]
[336748823,1725097126522,-937.79,0.00042191,120]
[336748824,1725097126574,-500.0,0.00042191,120]
[336748825,1725097126626,-957.01,0.00042191,120]
[336748826,1725097126679,-510.59,0.00042191,120]
[336748827,1725097126732,-572.63,0.00042191,120]
[336748828,1725097126790,-500.0,0.00042191,120]
[336748829,1725097126846,-621.5,0.00042191,120]
[336748830,1725097126899,-500.0,0.00042191,120]
[336748831,1725097126951,-500.0,0.00042191,120]
[336748832,1725097127009,-500.0,0.00042191,120]
[336748833,1725097127068,-500.0,0.00042191,120]
[336748834,1725097127122,-500.0,0.00042191,120]
[336748835,1725097127180,-700.84,0.00042191,120]
[336748836,1725097127242,-500.0,0.00042191,120]
[336748837,1725097127303,-500.0,0.00042191,120]
[336748838,1725097127361,-581.7,0.00042191,120]
[336748839,1725097127414,-260.3983303,0.00042191,120]
[336748840,1725097127465,-500.0,0.00042191,120]
[336748841,1725097127513,-642.41,0.00042191,120]
[336748842,1725097127564,-500.0,0.00042191,120]
[336748843,1725097127615,-500.0,0.00042191,120]
[336748844,1725097127662,-500.0,0.00042191,120]
[336748845,1725097127712,-500.0,0.00042191,120]
[336748846,1725097127766,-500.0,0.00042191,120]
[336748847,1725097127816,-500.0,0.00042191,120]
[336748848,1725097127866,-500.0,0.00042191,120]
[336748849,1725097127916,-500.0,0.00042191,120]
[336748850,1725097127965,-500.0,0.00042191,120]
[336748851,1725097128017,-500.0,0.00042191,120]
[336748852,1725097128072,-500.0,0.00042191,120]
[336748853,1725097128126,-1149.09,0.00042191,120]
[336748854,1725097128181,-500.0,0.00042191,120]
[336748855,1725097128235,-583.56,0.00042191,120]
[336748856,1725097128290,-500.0,0.00042191,120]
[336748857,1725097128340,-500.0,0.00042191,120]
[336748858,1725097128391,-500.0,0.00042191,120]
[336748859,1725097128446,-703.88,0.00042191,120]
[336748860,1725097128497,-500.0,0.00042191,120]
[336748861,1725097128550,-575.9,0.00042191,120]
[336748862,1725097128598,-500.0,0.00042191,120]
[336748863,1725097128648,-500.0,0.00042191,120]
[336748864,1725097128696,-500.0,0.00042191,120]
[336748865,1725097128745,-692.08,0.00042191,120]
[336748866,1725097128796,-500.0,0.00042191,120]
[336748867,1725097128846,-500.0,0.00042191,120]
[336748868,1725097128896,-709.25,0.00042191,120]
[336748869,1725097128948,-500.0,0.00042191,120]
[336748870,1725097129006,-500.0,0.00042191,120]
[336748871,1725097129059,-908.27,0.00042191,120]
[336748872,1725097129111,-744.36,0.00042191,120]
[336748873,1725097129162,-500.0,0.00042191,120]
[336748874,1725097129216,-500.0,0.00042191,120]
[336748875,1725097129268,-500.0,0.00042191,120]
[336748876,1725097129319,-1042.45,0.00042191,120]
[336748877,1725097129373,-559.78,0.00042191,120]
[336748878,1725097129424,-500.0,0.00042191,120]
[336748879,1725097129474,-500.0,0.00042191,120]
[336748880,1725097129521,-500.0,0.00042191,120]
[336748881,1725097129569,-532.51,0.00042191,120]
[336748882,1725097129618,-500.0,0.00042191,120]
[336748883,1725097129671,-500.0,0.00042191,120]
[336748884,1725097129723,-500.0,0.00042191,120]
[336748885,1725097129780,-500.0,0.00042191,120]
[336748886,1725097129839,-500.0,0.00042191,120]
[336748887,1725097129896,-5894.48,0.00042191,120]
[336748888,1725097129954,-999.03,0.00042191,120]
[336748889,1725097130009,-500.0,0.00042191,120]
[336748890,1725097130062,-500.0,0.00042191,120]
[336748891,1725097130113,-500.0,0.00042191,120]
[336748892,1725097130164,-500.0,0.00042191,120]
[336748893,1725097130217,-500.0,0.00042191,120]
[336748894,1725097130269,-959.15,0.00042191,120]
[336748895,1725097130320,-500.0,0.00042191,120]
[336748896,1725097130369,-500.0,0.00042191,120]
[336748897,1725097130416,-500.0,0.00042191,120]
[336748898,1725097130464,-500.0,0.00042191,120]
[336748899,1725097130511,-500.0,0.00042191,120]
[336748900,1725097130558,-773.73,0.00042191,120]
[336748901,1725097130604,-500.0,0.00042191,120]
[336748902,1725097130650,-500.0,0.00042191,120]
[336748903,1725097130698,-576.08,0.00042191,120]
[336748904,1725097130746,-500.0,0.00042191,120]
[336748905,1725097130795,-4941.98,0.00042191,120]
[336748906,1725097130845,-1002.27,0.00042191,120]
[336748907,1725097130896,-527.82,0.00042191,120]
[336748908,1725097130946,-500.0,0.00042191,120]
[336748909,1725097130995,-560.67,0.00042191,120]
[336748910,1725097131044,-500.0,0.00042191,120]
[336748911,1725097131092,-951.43,0.00042191,120]
[336748912,1725097131144,-600.87,0.00042191,120]
[336748913,1725097131194,-2172.73,0.00042191,120]
[336748914,1725097131243,-500.0,0.00042191,120]
[336748915,1725097131291,-500.0,0.00042191,120]
[336748916,1725097131340,-651.36,0.00042191,120]
[336748917,1725097131388,-500.0,0.00042191,120]
[336748918,1725097131434,-616.15,0.00042191,120]
[336748919,1725097131483,-500.0,0.00042191,120]
[336748920,1725097131530,-500.0,0.00042191,120]
[336748921,1725097131579,-1919.32,0.00042191,120]
[336748922,1725097131626,-641.39,0.00042191,120]
[336748923,1725097131674,-500.0,0.00042191,120]
[336748924,1725097131895,-500.0,0.00042191,120]
[336748925,1725097131952,-408.4421518,0.00042191,120]
[336748926,1725097132008,-705.93,0.00042191,120]
[336748927,1725097132065,-2887.57,0.00042191,120]
[336748928,1725097132120,-500.0,0.00042191,120]
[336748929,1725097132174,-563.2,0.00042191,120]
[336748930,1725097132227,-546.79,0.00042191,120]
[336748931,1725097132281,-5244.54,0.00042191,120]
[336748932,1725097132337,-1196.9,0.00042191,120]
[336748933,1725097132392,-500.0,0.00042191,120]
[336748934,1725097132447,-954.53,0.00042191,120]
[336748935,1725097132496,-754.96,0.00042191,120]
[336748936,1725097132545,-509.91,0.00042191,120]
[336748937,1725097132592,-534.73,0.00042191,120]
[336748938,1725097132639,-500.0,0.00042191,120]
[336748939,1725097132687,-500.0,0.00042191,120]
[336748940,1725097132737,-500.0,0.00042191,120]
[336748941,1725097132786,-1291.66,0.00042191,120]
[336748942,1725097132834,-500.0,0.00042191,120]
[336748943,1725097132881,-1172.65,0.00042191,120]
[336748944,1725097132929,-771.32,0.00042191,120]
[336748945,1725097132975,-645.72368926,0.00042191,120]
[336748946,1725097133022,-500.0,0.00042191,120]
[336748947,1725097133070,-1861.26,0.00042191,120]
[336748948,1725097133118,-1885.7,0.00042191,120]
[336748949,1725097133166,-662.9,0.00042191,120]
[336748950,1725097133217,-500.0,0.00042191,120]
[336748951,1725097133266,-785.17,0.00042191,120]
[336748952,1725097133316,-1251.52,0.00042191,120]
[336748953,1725097133363,-758.26,0.00042191,120]
[336748954,1725097133410,-963.03,0.00042191,120]
[336748955,1725097133454,-1436.3,0.00042191,120]
[336748956,1725097133500,-827.96,0.00042191,120]
[336748957,1725097133546,-500.0,0.00042191,120]
[336748958,1725097133592,-549.77056817,0.00042191,120]
[336748959,1725097133639,-818.6,0.00042191,120]
[336748960,1725097133684,-500.0,0.00042191,120]
[336748961,1725097133727,-545.12,0.00042191,120]
[336748962,1725097133775,-700.92,0.00042191,120]
[336748963,1725097133821,-500.0,0.00042191,120]
[336748964,1725097133866,-642.58,0.00042191,120]
[336748965,1725097133911,-970.93,0.00042191,120]
[336748966,1725097133956,-1182.65,0.00042191,120]
[336748967,1725097134003,-500.0,0.00042191,120]
[336748968,1725097134051,-500.0,0.00042191,120]
[336748969,1725097134099,-537.82,0.00042191,120]
[336748970,1725097134149,-1318.5,0.00042191,120]
[336748971,1725097134196,-500.0,0.00042191,120]
[336748972,1725097134247,-3016.08,0.00042191,120]
[336748973,1725097134296,-831.76,0.00042191,120]
[336748974,1725097134348,-1476.17,0.00042191,120]
[336748975,1725097134396,-983.21,0.00042191,120]
[336748976,1725097134444,-885.33,0.00042191,120]
[336748977,1725097134491,-2660.4,0.00042191,120]
[336748978,1725097134535,-500.0,0.00042191,120]
[336748979,1725097134581,-638.33,0.00042191,120]
[336748980,1725097134637,-755.01,0.00042191,120]
[336748981,1725097134690,-604.41,0.00042191,120]
[336748982,1725097134744,-500.0,0.00042191,120]
[336748983,1725097134798,-4191.91,0.00042191,120]
[336748984,1725097134852,-3168.28,0.00042191,120]
[336748985,1725097134904,-500.0,0.00042191,120]
[336748986,1725097134957,-599.15,0.00042191,120]
[336748987,1725097135006,-500.0,0.00042191,120]
[336748988,1725097135055,-500.0,0.00042191,120]
[336748989,1725097135100,-665.66,0.00042191,120]
[336748990,1725097135147,-1523.88,0.00042191,120]
[336748991,1725097135196,-500.0,0.00042191,120]
[336748992,1725097135244,-618.99,0.00042191,120]
[336748993,1725097135293,-500.0,0.00042739,120]
[336748994,1725097135340,-500.0,0.00042739,120]
[336748995,1725097135385,-500.0,0.00042739,120]
[336748996,1725097135430,-500.0,0.00042739,120]
[336748997,1725097135479,-500.0,0.00042739,120]
[336748998,1725097135524,-500.0,0.00042739,120]
[336748999,1725097135571,-500.0,0.00042739,120]
[336749000,1725097135618,-500.0,0.00042739,120]
[336749001,1725097135665,-500.0,0.00042739,120]
[336749002,1725097135711,-314.10320428,0.00042739,120]
[336749003,1725097135759,-500.0,0.00042739,120]
[336749004,1725097135807,-500.0,0.00042739,120]
[336749005,1725097135854,-500.0,0.00042739,120]
[336749006,1725097135900,-560.46,0.00042739,120]
[336749007,1725097135948,-435.05254173,0.00042739,120]
[336749008,1725097135998,-345.70900914,0.00042739,120]
[336749009,1725097136049,-500.0,0.00042739,120]
[336749010,1725097136098,-561.62,0.00042739,120]
[336749011,1725097136147,-500.0,0.00042739,120]
[336749012,1725097136194,-500.0,0.00042739,120]
[336749013,1725097136245,-500.0,0.00042739,120]
[336749014,1725097136295,-500.0,0.00042739,120]
[336749015,1725097136344,-465.32102598,0.00042739,120]
[336749016,1725097136392,-500.0,0.00042739,120]
[336749017,1725097136441,-500.0,0.00042739,120]
[336749018,1725097136487,-500.0,0.00042739,120]
[336749019,1725097136535,-500.0,0.00042739,120]
[336749020,1725097136583,-500.0,0.00042739,120]
[336749021,1725097136633,-500.0,0.00042739,120]
[336749022,1725097136684,-500.0,0.00042739,120]
[336749023,1725097136738,-500.0,0.00042739,120]
[336749024,1725097136792,-500.0,0.00042739,120]
[336749025,1725097136844,-946.93,0.00042739,120]
[336749026,1725097136894,-500.0,0.00042739,120]
[336749027,1725097137104,-590.31,0.00042739,120]
[336749028,1725097137160,-725.19,0.00042739,120]
[336749029,1725097137217,-532.94,0.00042739,120]
[336749030,1725097137275,-500.0,0.00042739,120]
[336749031,1725097137331,-500.0,0.00042739,120]
[336749032,1725097137385,-500.0,0.00042739,120]
[336749033,1725097137445,-500.0,0.00042739,120]
[336749034,1725097137500,-500.0,0.00042739,120]
[336749035,1725097137554,-500.0,0.00042739,120]
[336749036,1725097137609,-500.0,0.00042739,120]
[336749037,1725097137663,-500.0,0.00042739,120]
[336749038,1725097137716,-835.6,0.00042739,120]
[336749039,1725097137770,-500.0,0.00042739,120]
[336749040,1725097137823,-500.0,0.00042739,120]
[336749041,1725097137874,-500.0,0.00042739,120]
[336749042,1725097137925,-500.0,0.00042739,120]
[336749043,1725097137973,-1002.35,0.00042739,120]
[336749044,1725097138020,-500.0,0.00042739,120]
[336749045,1725097138068,-500.0,0.00042739,120]
[336749046,1725097138115,-500.0,0.00042739,120]
[336749047,1725097138163,-500.0,0.00042739,120]
[336749048,1725097138212,-598.40305109,0.00042739,120]
[336749049,1725097138262,-500.0,0.00042739,120]
[336749050,1725097138314,-500.0,0.00042739,120]
[336749051,1725097138363,-748.87,0.00042739,120]
[336749052,1725097138410,-500.0,0.00042739,120]
[336749053,1725097138457,-500.0,0.00042739,120]
[336749054,1725097138504,-704.37,0.00042739,120]
[336749055,1725097138554,-500.0,0.00042739,120]
[336749056,1725097138600,-500.0,0.00042739,120]
[336749057,1725097138645,-500.0,0.00042739,120]
[336749058,1725097138689,-960.35,0.00042739,120]
[336749059,1725097138733,-634.42661492,0.00042739,120]
[336749060,1725097138780,-743.26,0.00042739,120]
[336749061,1725097138826,-723.59,0.00042739,120]
[336749062,1725097138871,-500.0,0.00042739,120]
[336749063,1725097138917,-1975.9,0.00042739,120]
[336749064,1725097138968,-500.0,0.00042739,120]
[336749065,1725097139018,-937.79,0.00042739,120]
[336749066,1725097139065,-500.0,0.00042739,120]
[336749067,1725097139113,-957.01,0.00042739,120]
[336749068,1725097139162,-510.59,0.00042739,120]
[336749069,1725097139212,-500.0,0.00042739,120]
[336749070,1725097139260,-621.5,0.00042739,120]
[336749071,1725097139311,-500.0,0.00042739,120]
[336749072,1725097139359,-500.0,0.00042739,120]
[336749073,1725097139407,-500.0,0.00042739,120]
[336749074,1725097139452,-500.0,0.00042739,120]
[336749075,1725097139502,-500.0,0.00042739,120]
[336749076,1725097139548,-700.84,0.00042739,120]
[336749077,1725097139592,-500.0,0.00042739,120]
[336749078,1725097139638,-500.0,0.00042739,120]
[336749079,1725097139685,-581.7,0.00042739,120]
[336749080,1725097139735,-500.0,0.00042739,120]
[336749081,1725097139785,-642.41,0.00042739,120]
[336749082,1725097139835,-500.0,0.00042739,120]
[336749083,1725097139884,-500.0,0.00042739,120]
[336749084,1725097139932,-500.0,0.00042739,120]
[336749085,1725097139979,-500.0,0.00042739,120]
[336749086,1725097140028,-500.0,0.00042739,120]
[336749087,1725097140081,-500.0,0.00042739,120]
[336749088,1725097140133,-500.0,0.00042739,120]
[336749089,1725097140189,-500.0,0.00042739,120]
[336749090,1725097140243,-500.0,0.00042739,120]
[336749091,1725097140296,-500.0,0.00042739,120]
[336749092,1725097140349,-500.0,0.00042739,120]
[336749093,1725097140405,-1149.09,0.00042739,120]
[336749094,1725097140455,-500.0,0.00042739,120]
[336749095,1725097140502,-583.56,0.00042739,120]
[336749096,1725097140550,-500.0,0.00042739,120]
[336749097,1725097140596,-500.0,0.00042739,120]
[336749098,1725097140645,-500.0,0.00042739,120]
[336749099,1725097140691,-703.88,0.00042739,120]
[336749100,1725097140736,-500.0,0.00042739,120]
[336749101,1725097140784,-575.9,0.00042739,120]
[336749102,1725097140830,-500.0,0.00042739,120]
[336749103,1725097140876,-500.0,0.00042739,120]
[336749104,1725097140921,-500.0,0.00042739,120]
[336749105,1725097140968,-692.08,0.00042739,120]
[336749106,1725097141018,-500.0,0.00042739,120]
[336749107,1725097141062,-709.25,0.00042739,120]
[336749108,1725097141107,-500.0,0.00042739,120]
[336749109,1725097141152,-500.0,0.00042739,120]
[336749110,1725097141198,-500.0,0.00042739,120]
[336749111,1725097141248,-908.27,0.00042739,120]
[336749112,1725097141295,-744.36,0.00042739,120]
[336749113,1725097141342,-500.0,0.00042739,120]
[336749114,1725097141388,-500.0,0.00042739,120]
[336749115,1725097141436,-500.0,0.00042739,120]
[336749116,1725097141482,-1042.45,0.00042739,120]
[336749117,1725097141528,-559.78,0.00042739,120]
[336749118,1725097141572,-500.0,0.00042739,120]
[336749119,1725097141615,-500.0,0.00042739,120]
[336749120,1725097141658,-500.0,0.00042739,120]
[336749121,1725097141702,-532.51,0.00042739,120]
[336749122,1725097141750,-500.0,0.00042739,120]
[336749123,1725097141797,-500.0,0.00042739,120]
[336749124,1725097141843,-500.0,0.00042739,120]
[336749125,1725097141888,-500.0,0.00042739,120]
[336749126,1725097141932,-500.0,0.00042739,120]
[336749127,1725097141977,-5894.48,0.00042739,120]
[336749128,1725097142024,-999.03,0.00042739,120]
[336749129,1725097142077,-500.0,0.00042739,120]
[336749130,1725097142125,-500.0,0.00042739,120]
[336749131,1725097142338,-500.0,0.00042739,120]
[336749132,1725097142390,-500.0,0.00042739,120]
[336749133,1725097142443,-500.0,0.00042739,120]
[336749134,1725097142490,-959.15,0.00042739,120]
[336749135,1725097142537,-500.0,0.00042739,120]
[336749136,1725097142585,-500.0,0.00042739,120]
[336749137,1725097142636,-500.0,0.00042739,120]
[336749138,1725097142686,-500.0,0.00042739,120]
[336749139,1725097142736,-500.0,0.00042739,120]
[336749140,1725097142789,-773.73,0.00042739,120]
[336749141,1725097142841,-500.0,0.00042739,120]
[336749142,1725097142887,-500.0,0.00042739,120]
[336749143,1725097142932,-576.08,0.00042739,120]
[336749144,1725097142978,-500.0,0.00042739,120]
[336749145,1725097143028,-4941.98,0.00042739,120]
[336749146,1725097143081,-1002.27,0.00042739,120]
[336749147,1725097143137,-527.82,0.00042739,120]
[336749148,1725097143193,-500.0,0.00042739,120]
[336749149,1725097143249,-560.67,0.00042739,120]
[336749150,1725097143306,-500.0,0.00042739,120]
[336749151,1725097143362,-951.43,0.00042739,120]
[336749152,1725097143416,-600.87,0.00042739,120]
[336749153,1725097143471,-2172.73,0.00042739,120]
[336749154,1725097143527,-500.0,0.00042739,120]
[336749155,1725097143584,-500.0,0.00042739,120]
[336749156,1725097143640,-651.36,0.00042739,120]
[336749157,1725097143697,-500.0,0.00042739,120]
[336749158,1725097143755,-616.15,0.00042739,120]
[336749159,1725097143817,-500.0,0.00042739,120]
[336749160,1725097143874,-500.0,0.00042739,120]
[336749161,1725097143933,-1919.32,0.00042739,120]
[336749162,1725097143992,-641.39,0.00042739,120]
[336749163,1725097144051,-500.0,0.00042739,120]
[336749164,1725097144111,-500.0,0.00042739,120]
[336749165,1725097144170,-705.93,0.00042739,120]
[336749166,1725097144227,-2887.57,0.00042739,120]
[336749167,1725097144283,-500.0,0.00042739,120]
[336749168,1725097144338,-563.2,0.00042739,120]
[336749169,1725097144392,-546.79,0.00042739,120]
[336749170,1725097144446,-5244.54,0.00042739,120]
[336749171,1725097144501,-1196.9,0.00042739,120]
[336749172,1725097144558,-500.0,0.00042739,120]
[336749173,1725097144612,-954.53,0.00042739,120]
[336749174,1725097144670,-754.96,0.00042739,120]
[336749175,1725097144725,-509.91,0.00042739,120]
[336749176,1725097144782,-534.73,0.00042739,120]
[336749177,1725097144837,-500.0,0.00042739,120]
[336749178,1725097144893,-500.0,0.00042739,120]
[336749179,1725097144950,-500.0,0.00042739,120]
[336749180,1725097145005,-1291.66,0.00042739,120]
[336749181,1725097145059,-500.0,0.00042739,120]
[336749182,1725097145113,-1172.65,0.00042739,120]
[336749183,1725097145166,-771.32,0.00042739,120]
[336749184,1725097145220,-500.0,0.00042739,120]
[336749185,1725097145275,-1861.26,0.00042739,120]
[336749186,1725097145331,-1885.7,0.00042739,120]
[336749187,1725097145386,-662.9,0.00042739,120]
[336749188,1725097145443,-500.0,0.00042739,120]
[336749189,1725097145496,-785.17,0.00042739,120]
[336749190,1725097145546,-1251.52,0.00042739,120]
[336749191,1725097145596,-758.26,0.00042739,120]
[336749192,1725097145645,-963.03,0.00042739,120]
[336749193,1725097145692,-1436.3,0.00042739,120]
[336749194,1725097145741,-827.96,0.00042739,120]
[336749195,1725097145806,-500.0,0.00042739,120]
[336749196,1725097145873,-818.6,0.00042739,120]
[336749197,1725097145921,-500.0,0.00042739,120]
[336749198,1725097145968,-545.12,0.00042739,120]
[336749199,1725097146020,-700.92,0.00042739,120]
[336749200,1725097146083,-500.0,0.00042739,120]
[336749201,1725097146146,-642.58,0.00042739,120]
[336749202,1725097146210,-970.93,0.00042739,120]
[336749203,1725097146262,-1182.65,0.00042739,120]
[336749204,1725097146314,-500.0,0.00042739,120]
[336749205,1725097146363,-500.0,0.00042739,120]
[336749206,1725097146428,-537.82,0.00042739,120]
[336749207,1725097146497,-1318.5,0.00042739,120]
[336749208,1725097146547,-500.0,0.00042739,120]
[336749209,1725097146614,-3016.08,0.00042739,120]
[336749210,1725097146675,-831.76,0.00042739,120]
[336749211,1725097146730,-1476.17,0.00042739,120]
[336749212,1725097146784,-983.21,0.00042739,120]